Cogmind - Beta 13 @@@ ROGUE MODE // 2024.04.10 @ 09:03:07 Player: zoefiri Result: Destroyed by G-47 Trooper with Particle Gun Performance ------------- Evolutions (3) 1500 Regions Visited (6) 1200 Robots Destroyed (33) 165 Value Destroyed (911) 911 Prototype IDs (23) 460 Alien Tech Used (0) 0 Bonus (385) 385 TOTAL SCORE: 4621 Bonus ------- Follower Combat Kills 85 Aligned with FarCom 300 Cogmind --------- Core Integrity 0/700 Matter 205/300 Energy 99/100 System Corruption 0% Temperature Warning (363) Movement Core (200) Ox3 Location -7/Factory Parts ------- > --- POWER (2) -------- (None) > --- PROPULSION (4) --- (None) > --- UTILITY (4) ------ Medium Storage Unit > --- WEAPON (3) ------- Spear > --- INVENTORY (10) --- Aluminum Leg Improved Heat Sink Advanced Weight Redist. System Light Armor Plating Medium Armor Plating Shield Generator PSU Rigger Peak State ------------ > --- POWER ------------ Light Nuclear Core Micro Nuclear Core > --- PROPULSION ------- Aluminum Leg Aluminum Leg Carbon-fiber Leg Carbon-fiber Leg > --- UTILITY ---------- Medium Storage Unit Particle Charger Propulsion Shielding Hardened Medium Armor Plating > --- WEAPON ----------- Heavy Particle Cannon Heavy Particle Cannon Flak Cannon > --- INVENTORY -------- Aluminum Leg Improved Heat Sink Advanced Weight Redist. System Propulsion Shielding Light Armor Plating Medium Armor Plating Shield Generator PSU Rigger Rocket Launcher [Rating: 34] Favorites ----------- Power Light Nuclear Core Engine Light Ion Engine Power Core Light Nuclear Core Propulsion Aluminum Leg Leg Aluminum Leg Utility Small Storage Unit Device Terrain Scanner Storage Small Storage Unit Protection Propulsion Shielding Weapon Shotgun Energy Gun Beamcaster Energy Cannon Heavy Particle Cannon Ballistic Gun Shotgun Ballistic Cannon Flak Cannon Launcher Rocket Launcher Impact Weapon Heavy Hammer Piercing Weapon Spear Build | -11 -10 -10 -10 -9 -8 -7 ------- Run | Yrd Mat Min Exi Min Mat Fac Slots Evolved 6 | . . . . . 4 2 Power 1 | . . . . . . 1 Propulsion 2 | . . . . . 2 . Utility 2 | . . . . . 2 . Weapon 1 | . . . . . . 1 Parts Attached 46 | 7 8 . . 3 15 13 Power 8 | 1 2 . . 1 1 3 Engine 4 | 1 2 . . . . 1 Core 4 | . . . . 1 1 2 Reactor . | . . . . . . . Propulsion 10 | 2 1 . . 2 3 2 Treads . | . . . . . . . Leg 10 | 2 1 . . 2 3 2 Wheel . | . . . . . . . Hover . | . . . . . . . Flight . | . . . . . . . Utility 10 | 1 1 . . . 6 2 Device 3 | . 1 . . . 1 1 Storage 2 | 1 . . . . 1 . Processor . | . . . . . . . Hackware . | . . . . . . . Protection 5 | . . . . . 4 1 Artifact . | . . . . . . . Weapon 18 | 3 4 . . . 5 6 Energy Gun 4 | 1 . . . . 3 . Energy Cannon 2 | . . . . . . 2 Ballistic Gun 7 | 2 3 . . . 1 1 Ballistic Cannon 2 | . . . . . 1 1 Launcher 1 | . . . . . . 1 Special Weapon . | . . . . . . . Impact Weapon 1 | . 1 . . . . . Slashing Weapon . | . . . . . . . Piercing Weapon 1 | . . . . . . 1 Special Melee Weapon . | . . . . . . . Unidentified Prototypes . | . . . . . . . Parts Lost 23 | . 4 . . . 3 16 Power 6 | . 1 . . . 1 4 Propulsion 5 | . 1 . . . . 4 Utility 5 | . . . . . 1 4 Weapon 7 | . 2 . . . 1 4 Highest Loss Streak 13 | . 4 . . . 2 13 To Critical Strikes . | . . . . . . . Average Slot Usage (%) 93 | . 93 100 100 100 90 89 Engine 6 | . 10 14 14 8 . 1 Core 4 | . . . . 5 7 7 Leg 29 | . 27 28 28 28 34 28 Device 10 | . 11 14 14 14 7 5 Storage 12 | . 14 14 14 14 15 7 Protection 4 | . . . . . 7 13 Energy Gun 1 | . . . . . 7 . Energy Cannon 1 | . . . . . . 7 Ballistic Gun 18 | . 26 28 28 28 8 4 Ballistic Cannon 1 | . . . . . . 8 Naked Turns . | . . . . . . . Heaviest Build 55 | 13 15 15 15 17 36 55 Greatest Support 50 | 20 20 20 20 20 50 50 Greatest Overweight (x) 4 | 3 1 . . . . 4 Average Overweight (x) . | . . . . . . . Largest Inventory Capacity 10 | 8 8 8 8 8 10 10 Average Capacity 8 | 7 8 8 8 8 9 10 Most Carried 10 | . 6 6 7 8 10 10 Average Carried 6 | . 4 6 6 7 8 9 Final Capacity 10 | 8 8 8 8 8 10 10 Final Carried 10 | . 6 6 7 8 10 7 Class Distribution -------------------- 39% | Mutant 19% | Scavenger-Tank 16% | Scavenger-Skirmisher 13% | Scavenger-Mutant 11% | Skirmisher Dominant Class ---------------- Mutant | -10/Materials Mutant | -10/Mines Mutant | -10/Exiles Skirmisher | -9/Mines Scavenger-Mutant | -8/Materials Scavenger-Tank | -7/Factory Resources | -11 -10 -10 -10 -9 -8 -7 ----------- Run | Yrd Mat Min Exi Min Mat Fac Matter Collected 1028 | . 563 . . 145 201 119 Remotely . | . . . . . . . Salvage Created 950 | . 360 . . 58 348 184 Parts 61 | . 31 . . 1 16 13 Haulers Intercepted 2 | . 2 . . . . . Recyclers Shooed . | . . . . . . . Parts Field Recycled . | . . . . . . . Retrieved Matter . | . . . . . . . Parts Self-Destructed . | . . . . . . . Prevented . | . . . . . . . Kills | -11 -10 -10 -10 -9 -8 -7 ------- Run | Yrd Mat Min Exi Min Mat Fac Combat Hostiles Destroyed 23 | . 9 . . 2 7 5 Melee 1 | . 1 . . . . . Guns 17 | . 8 . . 2 7 . Cannons 5 | . . . . . . 5 Classes Destroyed 8 | . 6 . . 1 1 . Worker 3 | . 2 . . . 1 . Hauler 2 | . 2 . . . . . Operator 3 | . 1 . . . 1 1 Watcher 2 | . 1 . . . . 1 Swarmer 10 | . 6 . . 1 . 3 Grunt 11 | . 3 . . . 6 2 Duelist 1 | . . . . 1 . . Sentry 1 | . . . . . 1 . Best Kill Streak 4 | . 3 . . 1 2 4 Combat Bots Only 4 | . 3 . . 1 2 4 Max Kills in Single Turn 1 | . 1 . . 1 1 1 Gunslinging . | . . . . . . . Exploded . | . . . . . . . Melee 1 | . 1 . . . . . Uniques/NPCs Destroyed . | . . . . . . . Combat | -11 -10 -10 -10 -9 -8 -7 -------- Run | Yrd Mat Min Exi Min Mat Fac Hostile Shots Fired 298 | . 84 4 . 6 42 162 Missed 67 | . 22 2 . 2 12 29 Damage Taken 3623 | . 684 31 . 59 477 2372 Core 976 | . 189 . . 8 74 705 Absorbed by Shields . | . . . . . . . Redirected to Shielding 81 | . . . . . 41 40 Core Remaining (%) 69 | 100 . . . 21 86 . Volleys Fired 111 | . 58 . . 7 27 19 Largest 3 | . 2 . . 2 2 3 Hottest 194 | . 46 . . 46 140 194 Shots Fired 223 | . 109 . . 14 52 48 Gun 175 | . 109 . . 14 52 . Cannon 48 | . . . . . . 48 Launcher . | . . . . . . . Special . | . . . . . . . Kinetic 170 | . 109 . . 14 24 23 Thermal 53 | . . . . . 28 25 Explosive . | . . . . . . . Electromagnetic . | . . . . . . . Robot Hit Streak 13 | . 7 . . 2 13 4 Robot Miss Streak 10 | . 7 . . 5 5 10 Penetration Max . | . . . . . . . Secondary Targets 1 | . . . . . 1 . Max Gunslinging Chain 1 | . . . . . 1 . Shots Hit Robots 121 | . 61 . . 8 30 22 Core Hits 63 | . 23 . . 2 17 21 Critical Kills . | . . . . . . . Critical Parts Destroyed 2 | . 2 . . . . . Critical Strikes 3 | . 2 . . . 1 . Burn 1 | . . . . . 1 . Destroy 1 | . 1 . . . . . Smash 1 | . 1 . . . . . Melee Attacks 6 | . 5 . . . . 1 Impact 5 | . 5 . . . . . Slashing . | . . . . . . . Piercing 1 | . . . . . . 1 Sneak Attacks . | . . . . . . . Combat Hostiles . | . . . . . . . Follow-up Attacks . | . . . . . . . Damage Inflicted 2206 | . 873 . . 97 686 550 Guns 1458 | . 690 . . 82 686 . Cannons 550 | . . . . . . 550 Explosions . | . . . . . . . Melee 182 | . 182 . . . . . Ramming 16 | . 1 . . 15 . . Kinetic 1396 | . 690 . . 82 392 232 Thermal 612 | . . . . . 294 318 Explosive . | . . . . . . . Electromagnetic . | . . . . . . . Impact 182 | . 182 . . . . . Slashing . | . . . . . . . Piercing . | . . . . . . . Highest Corruption 2 | . . . . . 2 . Average Corruption 2 | . . . . . 2 . Corruption Purged . | . . . . . . . Corruption Blocked . | . . . . . . . Effects 3 | . . . . . 3 . Message Errors 2 | . . . . . 2 . Data Loss (minor) 1 | . . . . . 1 . Overload Shots . | . . . . . . . Overflow Damage 55 | . 55 . . . . . Projectiles . | . . . . . . . Explosions . | . . . . . . . Melee 55 | . 55 . . . . . Knockbacks 15 | . . . . 1 . 14 Impact 1 | . . . . 1 . . Kinetic 9 | . . . . . . 9 Secondary 5 | . . . . . . 5 Self-Inflicted Damage 253 | . . . . . . 253 Shots 3 | . . . . . . 3 Rammed . | . . . . . . . Targets Rammed 6 | . 1 . . 5 . . Kicked 6 | . 1 . . 5 . . Crushed . | . . . . . . . Highest Temperature 602 | . 20 . . . 226 602 Average Temperature 171 | . 9 . . . 72 254 Received Heat Transfer 1482 | . 285 18 . . 234 945 Effects 17 | . . . . . . 17 Shutdowns 5 | . . . . . . 5 Energy Bleed 3 | . . . . . . 3 Short Circuit 2 | . . . . . . 2 Damage (minor) 4 | . . . . . . 4 Damage (major) 3 | . . . . . . 3 Siege Activations . | . . . . . . . Robots Corrupted . | . . . . . . . Combat Hostiles . | . . . . . . . Parts Fried 1 | . 1 . . . . . Impact Corruptions 2 | . 2 . . . . . Robots Melted . | . . . . . . . Combat Hostiles . | . . . . . . . Parts Melted 1 | . . . . . . 1 Heat Transferred 1036 | . . . . . 592 444 Parts Sabotaged . | . . . . . . . Parts Stolen . | . . . . . . . Parts Stripped . | . . . . . . . Power Chain Reactions . | . . . . . . . Alert | -11 -10 -10 -10 -9 -8 -7 ------- Run | Yrd Mat Min Exi Min Mat Fac Peak Influence 225 | . 225 8 . 50 206 173 Initial 42 | . . 8 . . 19 42 Average 69 | . 112 8 . 14 89 54 Maximum Alert Level 1 | . 1 . . . 1 . Low Security (%) 89 | 100 69 100 . 100 93 100 Level 1 10 | . 30 . . . 6 . Level 2 . | . . . . . . . Level 3 . | . . . . . . . Level 4 . | . . . . . . . Level 5 . | . . . . . . . High Security . | . . . . . . . Max Security . | . . . . . . . Squads Dispatched 6 | . 1 . . . 4 1 Investigation . | . . . . . . . Extermination . | . . . . . . . Reinforcement 3 | . 1 . . . 1 1 Assault . | . . . . . . . Garrison 3 | . . . . . 3 . Intercept . | . . . . . . . Searches Triggered . | . . . . . . . Construction Impeded . | . . . . . . . Haulers Reinforced . | . . . . . . . Active Scanning Responses . | . . . . . . . Cargo Convoy Interrupts . | . . . . . . . Stealth | -11 -10 -10 -10 -9 -8 -7 --------- Run | Yrd Mat Min Exi Min Mat Fac Distress Signals . | . . . . . . . Communications Jammed . | . . . . . . . Distress Signals . | . . . . . . . Times Spotted 60 | . 22 2 . 5 19 12 Peak Tracking Total 6 | . 5 2 . 3 6 6 Tactical Retreats 4 | . 1 . . 1 2 . Traps | -11 -10 -10 -10 -9 -8 -7 ------- Run | Yrd Mat Min Exi Min Mat Fac Traps Triggered 1 | . . . . . 1 . Indirectly . | . . . . . . . Trap Hack Attempts . | . . . . . . . Triggered . | . . . . . . . Disarmed . | . . . . . . . Reprogrammed . | . . . . . . . Reused . | . . . . . . . Traps Extracted . | . . . . . . . Installed . | . . . . . . . Triggered . | . . . . . . . Machines | -11 -10 -10 -10 -9 -8 -7 ---------- Run | Yrd Mat Min Exi Min Mat Fac Machines Disabled 7 | . . . . . . 7 Max in Single Turn 4 | . . . . . . 4 Machines Repaired . | . . . . . . . Machines Dismantled . | . . . . . . . Machines Sabotaged . | . . . . . . . Overloaded Fab Kills . | . . . . . . . Hacking | -11 -10 -10 -10 -9 -8 -7 --------- Run | Yrd Mat Min Exi Min Mat Fac Machines Accessed 1 | . . . 1 . . . Terminals . | . . . . . . . Fabricators . | . . . . . . . Repair Stations . | . . . . . . . Recycling Units . | . . . . . . . Scanalyzers . | . . . . . . . Garrison Access . | . . . . . . . Total Hacks 1 | . . . 1 . . . Successful 1 | . . . 1 . . . Failed . | . . . . . . . Catastrophic . | . . . . . . . Database Lockouts . | . . . . . . . Manual 1 | . . . 1 . . . Terminals . | . . . . . . . Fabricators . | . . . . . . . Repair Stations . | . . . . . . . Recycling Units . | . . . . . . . Scanalyzers . | . . . . . . . Garrison Access . | . . . . . . . Terminal Hacks 1 | . . . 1 . . . Derelict Proto ID Bank 1 | . . . 1 . . . Fabricator Hacks . | . . . . . . . Repair Station Hacks . | . . . . . . . Recycling Unit Hacks . | . . . . . . . Scanalyzer . | . . . . . . . Garrison Access Hacks . | . . . . . . . Unauthorized Hacks . | . . . . . . . Terminals . | . . . . . . . Fabricators . | . . . . . . . Repair Stations . | . . . . . . . Recycling Units . | . . . . . . . Scanalyzers . | . . . . . . . Garrison Access . | . . . . . . . Data Cores Recovered . | . . . . . . . Used . | . . . . . . . Hacking Detections . | . . . . . . . Full Trace Events . | . . . . . . . Feedback Events . | . . . . . . . Feedback Blocked . | . . . . . . . Robot Schematics Acquired . | . . . . . . . Robots Built . | . . . . . . . Authchips . | . . . . . . . Time . | . . . . . . . Total Robot Build Rating . | . . . . . . . Part Schematics Acquired . | . . . . . . . Parts Built . | . . . . . . . Authchips . | . . . . . . . Time . | . . . . . . . Total Part Build Rating . | . . . . . . . Parts Repaired . | . . . . . . . Time . | . . . . . . . Parts Recycled . | . . . . . . . Recycled Matter . | . . . . . . . Retrieved Matter . | . . . . . . . Retrieved Components . | . . . . . . . Parts Scanalyzed . | . . . . . . . Part Schematics Acquired . | . . . . . . . Parts Damaged . | . . . . . . . Bothacking | -11 -10 -10 -10 -9 -8 -7 ------------ Run | Yrd Mat Min Exi Min Mat Fac Used RIF Installer . | . . . . . . . Robots Hacked . | . . . . . . . Non-combat . | . . . . . . . Combat . | . . . . . . . Robot Hacks Applied . | . . . . . . . Relay Couplers Released . | . . . . . . . Fabnet Peak Effective % . | . . . . . . . Robots Rewired . | . . . . . . . Allies Hacked . | . . . . . . . Hacks Repelled . | . . . . . . . Allies | -11 -10 -10 -10 -9 -8 -7 -------- Run | Yrd Mat Min Exi Min Mat Fac Total Allies 4 | . . . . 4 . . Largest Group 3 | . . . . 3 1 . Highest-Rated Group 40 | . . . . 40 31 . Highest-Rated Ally 31 | . . . . 31 31 . Total Orders . | . . . . . . . Ally Attacks 27 | . . . . 14 13 . Total Damage 311 | . . . . 119 192 . Kills 4 | . . . . 2 2 . Allies Corrupted . | . . . . . . . Allies Melted . | . . . . . . . Intel | -11 -10 -10 -10 -9 -8 -7 ------- Run | Yrd Mat Min Exi Min Mat Fac Robot Analysis Total . | . . . . . . . Derelict Logs Recovered 2 | . . . . 2 . . Drone Launches . | . . . . . . . Drone Recoveries . | . . . . . . . Exploration | -11 -10 -10 -10 -9 -8 -7 ------------- Run | Yrd Mat Min Exi Min Mat Fac Turns Passed 3256 | 66 862 14 315 650 678 671 Spaces Moved 2057 | 39 533 12 262 493 407 311 Core 12 | 7 . . . . . 5 Treads . | . . . . . . . Legs 2045 | 32 533 12 262 493 407 306 Wheels . | . . . . . . . Hover . | . . . . . . . Flight . | . . . . . . . Fastest Speed 50 | 50 120 120 120 120 120 120 Average Speed 123 | 143 120 120 120 120 120 137 Slowest Speed 250 | 200 190 120 120 120 120 250 Overloaded Moves . | . . . . . . . Propulsion Burnouts . | . . . . . . . Robots Hopped . | . . . . . . . Cave-ins Triggered . | . . . . . . . Exploration Rate (%) 32 | 4 57 5 44 79 33 8 Regions Visited 6 Branch Regions 3 Pre-discovered Areas . | . . . . . . . Known Exits Taken 1 | . . . . . 1 . Unknown Exits Taken 5 | 1 1 1 1 1 . . Scrap Searched 2 | . . . . 2 . . Spaces Dug 2 | . . . . . . 2 Terrain Destroyed 72 | . . . . . 2 70 Melee . | . . . . . . . Projectile 8 | . . . . . 2 6 AOE 64 | . . . . . . 64 Terrain Rammed . | . . . . . . . Walls Destroyed . | . . . . . . . Machines Disabled . | . . . . . . . Actions | -11 -10 -10 -10 -9 -8 -7 --------- Run | Yrd Mat Min Exi Min Mat Fac Total 2554 | 46 641 11 262 539 542 513 Wait 291 | . 26 . . 20 83 162 Move 2051 | 38 532 11 261 492 406 311 Hop . | . . . . . . . Pick Up 19 | . 9 . 1 5 3 1 Fast Attach 31 | 7 3 . . 1 12 8 Attach 9 | . 4 . . . 1 4 Detach 1 | . 1 . . . . . Swap 6 | . 1 . . 2 2 1 Drop 23 | 1 1 . . 7 8 6 Fire 111 | . 58 . . 7 27 19 Melee 6 | . 5 . . . . 1 Ram . | . . . . . . . Kick 6 | . 1 . . 5 . . Crush . | . . . . . . . Escape Stasis . | . . . . . . . Rewire . | . . . . . . . Trap . | . . . . . . . Miscellaneous . | . . . . . . . Route ------- -11/Scrapyard -10/Materials (discovered 3 exits: [*Mat x2] / [*Min]) -10/Mines -10/Exiles -9/Mines -8/Materials (discovered 3 exits: *Fac x3) -7/Factory History --------- Turn | Location | Event 43 | -11/Scrapyard | Discovered new exit (range 13) 67 | -11/Scrapyard | Entered Materials 129 | -10/Materials | Discovered new exit (range 10) 243 | -10/Materials | Discovered new exit (range 6) 295 | -10/Materials | Discovered new exit (range 9) 307 | -10/Materials | Build established: Mutant 433 | -10/Materials | Core integrity fell below 50% 467 | -10/Materials | Lost 4 parts (1p1n2w) 929 | -10/Materials | Entered Mines 937 | -10/Mines | Deemed a non-threat by the Exiles lab entrance 938 | -10/Mines | Discovered new exit (range 5) 943 | -10/Mines | Entered Exiles 973 | -10/Exiles | Met 8R-AWN 991 | -10/Exiles | Met EX-HEX 1042 | -10/Exiles | Met EX-BIN 1059 | -10/Exiles | Aligned with FarCom system 1060 | -10/Exiles | Given EX-Vault access code 1095 | -10/Exiles | Opened EX-Vault 1104 | -10/Exiles | Found PSU Rigger 1130 | -10/Exiles | Warned to stay clear of 0b10 Research branches 1238 | -10/Exiles | Discovered new exit (range 15) 1258 | -10/Exiles | Left Exiles lab with PSU Rigger 1258 | -10/Exiles | Entered Mines 1307 | -9/Mines | Received a Rocket Launcher from a helpful Derelict 1430 | -9/Mines | Learned 2 Materials zone layouts 1538 | -9/Mines | Assisted by bots powering up and referring to "LRC-V3" 1558 | -9/Mines | Build established: Skirmisher 1610 | -9/Mines | Lost 3 allies 1674 | -9/Mines | Learned 8 Materials zone layouts 1892 | -9/Mines | Discovered new exit (range 9) 1896 | -9/Mines | Received a Mining Laser from a helpful Derelict 1908 | -9/Mines | Entered Materials 1908 | -8/Materials | Accompanied by 1 ally 1908 | -8/Materials | Evolved 4 slots: Propulsion x2, Utility x2 1909 | -8/Materials | Identified exit to Factory 1925 | -8/Materials | Build established: Scavenger-Skirmisher 2243 | -8/Materials | Garrison activated, responded to threat 2465 | -8/Materials | Build established: Scavenger-Mutant 2580 | -8/Materials | Discovered exit to Factory (range 4) 2586 | -8/Materials | Entered Factory 2586 | -7/Factory | Evolved 2 slots: Power x1, Weapon x1 2874 | -7/Factory | Build established: Scavenger-Tank 2951 | -7/Factory | Lost 3 parts (2p1u) 3243 | -7/Factory | Core integrity fell below 50% 3254 | -7/Factory | Core integrity fell below 20% 3257 | -7/Factory | Destroyed by G-47 Trooper with Particle Gun Last Messages --------------- K-01 Serf collects debris. Power failure, Lgt. Nuclear Core shutdown. Lgt. Deuterium Engine broken. Overheating: Short circuit. Aluminum Leg destroyed. G-47 Trooper knocked back. Overheating: Hvy. Particle Cannon damaged (-22). G-47 Trooper destroyed. G-47 Trooper knocked back. Lgt. Nuclear Core destroyed. G-47 Trooper knocked back. Broken Lgt. Deuterium Engine destroyed. Particle Charger destroyed. Hvy. Particle Cannon destroyed. Critical hit (Burn: +37). Carbon-fiber Leg destroyed. Flak Cannon destroyed. Overheating: Med. Storage Unit damaged (-141). Rocket Launcher destroyed. Critical hit (Burn: +37). Map ----- +----------------------------------------------------+ | | | | | | | | | | | | | | | | | | | | | | | | | | | | | | | | | ?????????????????###################?????????? | | ?????????????????# #?????????? | | ?????????????????# """ """ #?????????? | | ?????????????????# """ """ #?????????? | | ?????????????????# """ """ #?????????? | | ?????????????????# "F"" #?####??##? | | ?????????????????# """" ## # ## #? | | ?????????????????# ! # #? | | ?????????????????#######/gg;#;; ;""""# | | ?????##############????# @g ; # | | ?????# ###### % ; # | | ?????? "" " g!g ; # | | ?????# "" " ; # | | ?????# "T / ; # | | ?????# "" """ "##### ; # | | ?????# "" """ ##???# ; ! # | | ?????# """ #????# ; " # | | ?????# #????# ; " """" # | | ?????# """ """ #????# ################# | | ?????# """ """ !#????# ;##########?????? | | ?????# """ """ #????# # #?????? | | ?????# #????# # ] #?????? | | ############+########### # ] #?????? | | """ # #?????? | | "Y" ^ # ! #?????? | | " " """ """ """ """ # #?????? | | """ """ """ """ + [ #?????? | | """ """ """ """ # [ #?????? | | ### ###########?????? | | #" """ """ """ """ """ # #?????? | | #"" ^""" """ """ """ """ # """""" #?????? | | #"" """ """ """ """ """ # """""" #?????? | | #"" # """""" #?????? | | #"" """ """ """ """ + """""" #?????? | +----------------------------------------------------+ Best States ------------- Heat Dissipation 34 Energy Generation 24 Energy Capacity 250 Matter Stores 300 Matter Capacity 300 Sight Range 16 Terrain Scan Range 14 Terrain Scan Density 10 Armor Coverage 450 Propulsion Shielding 33 Evasion (%) 55 Particle Charging 15 Item Schematics ----------------- None Robot Schematics ------------------ None Fabricated ------------ Nothing Alien Tech Used ----------------- None Achievements -------------- None Challenges ------------ None Game ------ Seed SplicePrecisionExoskeleton Manual? 0 Play Time 00:26:36 Cumulative 8.4 hours Start 2024.04.10 @ 08:39:30 End 2024.04.10 @ 09:03:07 Sessions 1 Manual Loads 0 Difficulty Rogue Special Mode None Game No. 13 Rogue 10 Adventurer 0 Explorer 3 Win Type - Total 0 Types 0/0/0/0/0/0/0/0/0 Lore% 12 Gallery% 18 Achievement% 17 Wizard Run 0 Options --------- Layout 1 ASCII 0 Keyboard 0 Movement Arrows Keybinds 0 Fullscreen 0 Font 28/SmallcapsGlow Map View 50x43 Zoom Use 0% Tactical HUD 0 Map Filters NONE Filters NONE Steam 1 RUN: 5c684104-c491-489f-b0e9-64d62a7aef74